bitfinex-derivatives/quotes_SOLF0:USTF0_20260127
["timestamp","ask_amount","ask_price","bid_price","bid_amount"]
[1769547364747,35.63731035,127.17,127.1,33.85337451]
[1769547365754,42.72411035,127.16,127.1,33.85337451]
[1769547365955,35.63731035,127.16,127.1,33.85337451]
[1769547366154,7.0877,127.14,127.08,7.0909]
[1769547366350,7.0877,127.14,127.08,33.85337451]
[1769547367652,7.0877,127.14,127.06,280.44]
[1769547367653,7.0882,127.13,127.06,314.29337451]
[1769547367950,7.0882,127.13,127.07,33.85337451]
[1769547370151,7.0876,127.14,127.07,40.94477451]
[1769547370350,42.72491035,127.14,127.07,40.94477451]
[1769547371258,7.087,127.16,127.09,33.85337451]
[1769547371752,1.85144197,127.13,127.09,33.85337451]
[1769547373153,35.63731035,127.11,127.04,7.2113182]
[1769547373359,4.197e-05,127.08,127.03,41.06469271]
[1769547373556,1.85276918,127.09,127.03,41.06469271]
[1769547374351,1.85276918,127.09,127.03,40.94657451]
[1769547374557,35.63731035,127.11,127.03,40.94657451]
[1769547374756,1.85276918,127.09,127.03,40.94657451]
[1769547377266,1.85276918,127.09,127.04,7.0931]
[1769547377456,1.85276918,127.09,127.05,33.85337451]
[1769547377757,1.85276918,127.11,127.05,33.85337451]
[1769547378456,1.85276918,127.11,127.03,1.85276918]
[1769547378457,7.088,127.14,127.07,35.70614369]
[1769547379060,7.088,127.14,127.07,42.79744369]
[1769547379263,7.088,127.14,127.08,33.85337451]
[1769547380455,8.94096918,127.13,127.08,33.85337451]
[1769547381261,1.85276918,127.13,127.08,33.85337451]
[1769547383661,37.49007953,127.15,127.08,40.94427451]
[1769547384255,44.57717953,127.15,127.08,40.94427451]
[1769547384653,37.49007953,127.15,127.08,33.85337451]
[1769547385062,7.0876,127.14,127.08,33.85337451]
[1769547385271,37.49007953,127.15,127.08,40.94427451]
[1769547385561,37.49007953,127.15,127.08,33.85337451]
[1769547386565,8.93976918,127.16,127.09,33.87164016]
[1769547387663,7.0872,127.15,127.09,40.96204016]
[1769547388564,8.93926918,127.16,127.09,40.96204016]
[1769547390365,7.0871,127.15,127.09,40.96204016]
[1769547391272,46.27891343,127.16,127.09,40.96204016]
[1769547391460,8.93926918,127.16,127.1,40.96134016]
[1769547392165,7.0858,127.18,127.12,33.87164016]
[1769547392360,1.85276918,127.19,127.12,33.87164016]
[1769547392565,1.85276918,127.19,127.12,35.72440934]
[1769547393171,1.85276918,127.19,127.13,40.95974016]
[1769547393872,46.27781343,127.19,127.13,33.87164016]
[1769547394167,39.19241343,127.19,127.13,33.87164016]
[1769547394674,1.85276918,127.19,127.14,7.0874]
[1769547394881,8.93656918,127.21,127.14,40.95904016]
[1769547397872,1.85276918,127.21,127.15,7.087]
[1769547398173,1.85276918,127.21,127.16,33.87164016]
[1769547400177,8.93646918,127.21,127.16,33.87164016]
[1769547400578,8.93646918,127.21,127.14,33.87164016]
[1769547400981,1.85276918,127.21,127.14,33.87164016]
[1769547401984,1.85276918,127.21,127.15,40.95854016]
[1769547402592,8.93646918,127.21,127.15,33.87164016]
[1769547402889,1.85276918,127.21,127.15,33.87164016]
[1769547403490,1.85276918,127.23,127.15,35.72440934]
[1769547403886,39.19241343,127.23,127.16,33.87164016]
[1769547404591,46.27521343,127.23,127.16,40.95814016]
[1769547404783,39.19241343,127.23,127.16,40.95814016]
[1769547405183,37.33964425,127.26,127.18,33.87164016]
[1769547405383,39.19241343,127.23,127.14,35.72440934]
[1769547405985,39.19241343,127.23,127.16,40.95794016]
[1769547407991,7.0832,127.22,127.16,40.95794016]
[1769547408997,1.85276918,127.21,127.16,40.95794016]
[1769547410790,8.93656918,127.21,127.14,40.95874016]
[1769547411793,1.85276918,127.21,127.16,33.87164016]
[1769547412893,1.85276918,127.21,127.16,40.95794016]
[1769547413088,8.93586918,127.23,127.16,33.87164016]
[1769547413988,8.93586918,127.23,127.17,40.95754016]
[1769547414895,1.85276918,127.22,127.17,40.95754016]
[1769547417799,8.93606918,127.22,127.17,33.87164016]
[1769547417997,1.85276918,127.22,127.17,33.87164016]
[1769547419599,1.85276918,127.22,127.17,40.95754016]
[1769547420697,7.0826,127.24,127.18,7.0852]
[1769547420898,1.85276918,127.25,127.19,36.55423277]
[1769547421393,46.05933965,127.25,127.19,36.55423277]
[1769547421795,1.85276918,127.23,127.19,36.55423277]
[1769547422000,1.85276918,127.23,127.17,43.64013277]
[1769547422790,1.85276918,127.21,127.17,36.55423277]
[1769547423201,37.12507047,127.26,127.17,36.55423277]
[1769547423402,8.93466918,127.25,127.19,43.63903277]
[1769547430496,1.85276918,127.23,127.19,36.55423277]
[1769547431109,1.85276918,127.23,127.17,43.64013277]
[1769547431909,1.85276918,127.23,127.18,36.55423277]
[1769547432203,110.1286,127.29,127.18,36.55423277]
[1769547432204,1.85276918,127.26,127.18,36.55423277]
[1769547433003,8.93376918,127.26,127.2,7.0842]
[1769547433205,8.93376918,127.26,127.2,43.63843277]
[1769547433906,1.85276918,127.29,127.22,36.55423277]
[1769547434405,1.85276918,127.29,127.24,36.55423277]
[1769547434811,7.0783,127.31,127.24,36.55423277]
[1769547435011,1.85276918,127.3,127.24,43.63623277]
[1769547435605,1.84641995,127.31,127.24,43.63623277]
[1769547437902,1.84641995,127.31,127.25,7.0813]
[1769547438116,1.84641995,127.31,127.26,36.55423277]
[1769547439413,44.20277047,127.32,127.26,36.55423277]
[1769547442314,7.0781,127.31,127.26,36.55423277]
[1769547442516,7.0781,127.31,127.25,1.84641995]
[1769547442914,7.0781,127.31,127.25,38.40065272]
[1769547445816,7.0789,127.3,127.25,36.55423277]
[1769547446015,43.60970114,127.3,127.24,1.84641995]
[1769547446215,7.0789,127.3,127.24,36.6279708]
[1769547446821,43.61010114,127.29,127.24,1.84641995]
[1769547447117,7.0793,127.29,127.24,36.6279708]
[1769547447321,36.53080114,127.31,127.24,36.6279708]
[1769547447613,7.0788,127.3,127.24,36.6279708]
[1769547448016,43.60900114,127.31,127.24,8.92841995]
[1769547448216,270.86,127.32,127.26,36.6279708]
[1769547449012,36.53080114,127.31,127.26,1.84641995]
[1769547449313,36.53080114,127.28,127.21,36.6279708]
[1769547449518,36.53080114,127.26,127.19,36.6279708]
[1769547449818,7.0815,127.25,127.19,34.78155085]
[1769547450116,7.0821,127.24,127.19,34.78155085]
[1769547450621,43.61230114,127.25,127.19,34.78155085]
[1769547451223,308.71080114,127.25,127.19,34.78155085]
[1769547451825,7.0829,127.23,127.19,34.78155085]
[1769547452030,308.71080114,127.25,127.19,34.78155085]
[1769547452219,272.88,127.24,127.19,34.78155085]
[1769547453726,38.37722109,127.26,127.19,34.78155085]
[1769547453924,273.7,127.25,127.19,36.6279708]
[1769547454117,38.37722109,127.26,127.19,36.6279708]
[1769547454318,312.31722109,127.26,127.19,36.6279708]
[1769547454519,319.39822109,127.26,127.19,36.6279708]
[1769547454920,319.39822109,127.26,127.2,34.78155085]
[1769547455123,281.021,127.26,127.2,34.78155085]
[1769547455826,273.94,127.26,127.2,34.78155085]
[1769547456835,273.94,127.26,127.2,41.86575085]
[1769547457421,320.91752109,127.28,127.2,41.86575085]
[1769547457616,320.91752109,127.28,127.19,1.84641995]
[1769547457617,34.91552558,127.26,127.18,43.89822233]
[1769547457926,34.91552558,127.26,127.19,1.84641995]
[1769547458627,34.91552558,127.26,127.19,38.65964228]
[1769547459029,41.99652558,127.26,127.19,38.65964228]
[1769547459231,36.76194553,127.26,127.19,38.65964228]
[1769547459828,36.76194553,127.26,127.19,36.81322233]
[1769547460430,7.0821,127.24,127.19,36.81322233]
[1769547461029,41.99822558,127.23,127.16,36.81322233]
[1769547461332,41.99822558,127.23,127.16,38.65964228]
[1769547461829,34.91552558,127.23,127.17,43.89912233]
[1769547463029,321.24414553,127.24,127.17,43.89912233]
[1769547463724,7.0826,127.23,127.17,43.89912233]
[1769547464334,7.0826,127.23,127.17,36.81322233]
[1769547468732,7.0832,127.22,127.17,36.81322233]
[1769547470234,320.67802558,127.24,127.17,43.89912233]
[1769547470434,313.59552558,127.24,127.17,43.89912233]
[1769547471234,34.91552558,127.24,127.17,43.89912233]
[1769547471935,7.0827,127.23,127.17,43.89912233]
[1769547472938,34.91552558,127.24,127.17,36.81322233]
[1769547473938,7.0827,127.23,127.17,43.89892233]
[1769547476934,7.0827,127.23,127.18,1.84641995]
[1769547477140,7.0827,127.23,127.18,38.86846205]
[1769547477532,34.91552558,127.24,127.15,7.24562339]
[1769547477533,36.77082897,127.2,127.15,7.24562339]
[1769547477836,36.77082897,127.23,127.15,37.0220421]
[1769547478140,220.33082897,127.25,127.17,38.86846205]
[1769547478942,220.33082897,127.25,127.17,45.95436205]
[1769547478943,7.0829,127.23,127.17,45.95436205]
[1769547480434,190.642,127.25,127.18,7.0853]
[1769547480640,190.642,127.25,127.19,37.0220421]
[1769547481738,43.85292897,127.24,127.19,37.0220421]
[1769547481949,38.61724892,127.24,127.17,38.86846205]
[1769547482648,36.77082897,127.24,127.17,38.86846205]
[1769547483044,286.48,127.26,127.2,37.0220421]
[1769547483750,7.0815,127.25,127.2,37.0220421]
[1769547483956,286.48,127.26,127.2,37.0220421]
[1769547484141,1.84641995,127.28,127.2,37.0220421]
[1769547484142,38.61724892,127.28,127.2,37.0220421]
[1769547484338,38.61724892,127.28,127.22,37.0220421]
[1769547485151,36.77082897,127.28,127.22,37.0220421]
[1769547485351,36.77082897,127.28,127.22,38.86846205]
[1769547485948,43.85062897,127.28,127.22,38.86846205]
[1769547486853,43.85132897,127.27,127.2,38.86846205]
[1769547487158,36.77082897,127.27,127.2,37.0220421]
[1769547487457,43.85232897,127.25,127.18,37.0220421]
[1769547487946,36.77082897,127.25,127.16,7.24562339]
[1769547488254,38.61724892,127.21,127.14,44.26766549]
[1769547488955,7.084,127.21,127.15,38.86846205]
[1769547489360,38.61724892,127.23,127.15,38.86846205]
[1769547489950,7.0833,127.22,127.15,38.86846205]
[1769547491158,7.0824,127.24,127.17,38.86846205]
[1769547491354,296.0424,127.24,127.17,38.86846205]
[1769547491850,43.85352897,127.23,127.17,38.86846205]
[1769547493053,43.85352897,127.23,127.15,46.11408544]
[1769547493254,43.85352897,127.23,127.16,7.24562339]
[1769547493450,43.85352897,127.23,127.15,46.11408544]
[1769547493649,43.85352897,127.23,127.15,53.20108544]
[1769547494366,36.77082897,127.2,127.13,44.26766549]
[1769547494563,38.61724892,127.19,127.13,37.0220421]
[1769547494858,38.61724892,127.21,127.13,38.86846205]
[1769547495761,329.25724892,127.21,127.13,38.86846205]
[1769547495961,7.0843,127.2,127.13,38.86846205]
[1769547496368,36.77082897,127.2,127.13,38.86846205]
[1769547496756,36.77082897,127.2,127.13,37.0220421]
[1769547497664,38.62081007,127.2,127.13,37.0220421]
[1769547497962,7.0854,127.18,127.13,37.0220421]
[1769547498358,38.62081007,127.2,127.13,37.0220421]
[1769547498557,36.77082897,127.2,127.13,37.0220421]
[1769547498758,328.97082897,127.21,127.14,38.8720232]
[1769547499863,292.2,127.21,127.14,38.8720232]
[1769547500367,299.2838,127.21,127.14,38.8720232]
[1769547502267,299.2838,127.21,127.14,45.9596232]
[1769547504468,37.06804773,127.2,127.14,45.9596232]
[1769547505059,37.06804773,127.23,127.16,36.32669355]
[1769547505264,295.84,127.24,127.16,36.32669355]
[1769547505462,295.84,127.24,127.18,36.32669355]
[1769547505666,295.84,127.24,127.18,43.41199355]
[1769547506067,295.84,127.24,127.18,36.32669355]
[1769547506459,44.14844773,127.27,127.21,34.47671245]
[1769547506969,37.06804773,127.27,127.21,34.47671245]
[1769547507171,37.06804773,127.27,127.22,1.8499811]
[1769547507870,37.06804773,127.27,127.2,1.8499811]
[1769547508676,37.06804773,127.27,127.2,36.32669355]
[1769547509972,44.14854773,127.27,127.2,43.41089355]
[1769547510674,7.081,127.26,127.2,43.41089355]
[1769547512877,37.06804773,127.27,127.21,41.56031245]
[1769547513675,44.14854773,127.27,127.21,34.47671245]
[1769547517178,44.14854773,127.27,127.22,1.8499811]
[1769547518469,7.0805,127.27,127.22,36.32669355]
[1769547518667,44.14764773,127.29,127.24,1.8499811]
[1769547519780,7.0799,127.28,127.24,1.8499811]
[1769547520179,44.14794773,127.28,127.24,1.8499811]
[1769547520877,44.14794773,127.28,127.22,43.40969355]
[1769547522078,7.0799,127.28,127.23,34.47671245]
[1769547522782,44.14794773,127.28,127.23,34.47671245]
[1769547522979,44.14794773,127.28,127.22,1.8499811]
[1769547523980,44.14794773,127.28,127.22,36.32669355]
[1769547524576,344.98724773,127.3,127.23,34.47671245]
[1769547524772,337.90804773,127.3,127.23,34.47671245]
[1769547525876,337.90804773,127.3,127.24,36.32669355]
[1769547525877,300.84,127.3,127.24,36.32669355]
[1769547526481,300.84,127.3,127.24,43.40869355]
[1769547528093,44.14564773,127.32,127.26,36.32669355]
[1769547529281,44.14624773,127.31,127.26,1.8499811]
[1769547529477,44.14624773,127.31,127.24,43.40869355]
[1769547529677,44.14624773,127.31,127.24,1.8499811]
[1769547529678,7.0789,127.3,127.24,1.8499811]
[1769547529879,37.06804773,127.31,127.24,1.8499811]
[1769547530072,37.06804773,127.29,127.22,36.32669355]
[1769547530683,44.14784773,127.28,127.22,36.32669355]
[1769547531173,37.06804773,127.28,127.22,36.32669355]
[1769547531377,37.06804773,127.28,127.22,34.47671245]
[1769547531378,38.91802883,127.28,127.22,34.47671245]
[1769547531578,44.14844773,127.27,127.2,43.41039355]
[1769547533074,44.14844773,127.27,127.16,384.7875]
[1769547533075,38.91802883,127.26,127.18,36.32669355]
[1769547533886,7.0815,127.25,127.19,7.0847]
[1769547534192,38.91802883,127.24,127.15,144.71471245]
[1769547534384,110.1444,127.27,127.15,34.47671245]
[1769547534385,1.8499811,127.21,127.15,34.47671245]
[1769547535983,1.8499811,127.21,127.15,41.56361245]
[1769547537089,7.0824,127.24,127.17,37.53102972]
[1769547537294,1.8499811,127.25,127.2,37.53102972]
[1769547537980,8.9314811,127.25,127.2,37.53102972]
[1769547538177,1.8499811,127.25,127.2,37.53102972]
[1769547540089,43.7499393,127.27,127.2,44.61532972]
[1769547540287,36.6690393,127.25,127.18,37.53102972]
[1769547540492,1.8499811,127.25,127.19,44.61582972]
[1769547540689,1.8499811,127.25,127.19,46.46581082]
[1769547540889,34.8190582,127.27,127.19,39.38101082]
[1769547541090,36.6690393,127.27,127.19,39.38101082]
[1769547541394,34.8190582,127.26,127.19,46.46531082]
[1769547541586,34.8190582,127.26,127.19,39.38101082]
[1769547542490,334.4571,127.3,127.19,39.38101082]
[1769547542491,36.6690393,127.25,127.19,37.53102972]
[1769547543495,36.6690393,127.28,127.19,39.38101082]
[1769547543797,1.8499811,127.27,127.19,39.38101082]
[1769547544195,1.8499811,127.27,127.21,37.53102972]
[1769547544590,36.6690393,127.27,127.21,37.53102972]
[1769547544790,43.7494393,127.27,127.21,37.53102972]
[1769547545486,43.7494393,127.27,127.21,44.61472972]
[1769547545994,43.7488393,127.29,127.23,37.53102972]
[1769547547092,8.9285811,127.31,127.23,39.38101082]
[1769547547296,34.8190582,127.32,127.25,39.38101082]
[1769547547792,36.6690393,127.35,127.27,39.38101082]
[1769547547997,36.6690393,127.35,127.23,110.1687]
[1769547547998,36.6690393,127.33,127.25,39.38101082]
[1769547548300,43.7461393,127.33,127.26,44.61192972]
[1769547548897,41.8968582,127.32,127.26,37.53102972]
[1769547549396,1.8499811,127.3,127.24,44.61272972]
[1769547551294,1.8499811,127.3,127.24,37.53102972]
[1769547551505,43.7457393,127.34,127.26,37.53102972]
[1769547551693,36.6690393,127.34,127.26,37.53102972]
[1769547552301,43.7455393,127.34,127.26,37.53102972]
[1769547552597,1.8499811,127.32,127.26,37.53102972]
[1769547552802,7.0758,127.36,127.29,37.53102972]
[1769547552994,36.6690393,127.37,127.29,39.38101082]
[1769547553903,1.8499811,127.38,127.31,37.53102972]
[1769547554492,8.9242811,127.38,127.31,44.60902972]
[1769547554691,43.7433393,127.38,127.31,44.60902972]
[1769547554998,1.8499811,127.35,127.29,44.61012972]
[1769547555299,1.8499811,127.37,127.29,39.38101082]
[1769547555498,1.8499811,127.35,127.29,37.53102972]
[1769547555803,1.8499811,127.35,127.29,44.61012972]
[1769547556103,1.8499811,127.35,127.29,37.53102972]
[1769547556600,41.8937582,127.38,127.29,37.53102972]
[1769547556803,1.8499811,127.36,127.29,37.53102972]
[1769547557002,1.8499811,127.38,127.32,44.60852972]
[1769547557702,1.8444019,127.37,127.32,37.53102972]
[1769547558693,1.8444019,127.37,127.32,44.60852972]
[1769547558892,41.8922582,127.4,127.32,37.53102972]
[1769547559104,1.8444019,127.4,127.32,37.53102972]
[1769547560095,1.8444019,127.4,127.34,44.60742972]
[1769547560502,1.8444019,127.4,127.34,37.53102972]
[1769547564212,1.8444019,127.38,127.31,34.47427806]
[1769547564518,37.4027225,127.4,127.31,34.47427806]
[1769547564519,1.8444019,127.37,127.31,34.47427806]
[1769547565719,1.8444019,127.37,127.31,41.55227806]
[1769547566908,1.8444019,127.37,127.32,7.0774]
[1769547567111,1.8444019,127.39,127.33,35.22103203]
[1769547567913,1.8444019,127.39,127.33,42.29783203]
[1769547569403,36.48922291,127.39,127.33,35.22103203]
[1769547570312,1.8444019,127.35,127.29,35.22103203]
[1769547570817,36.48922291,127.37,127.3,35.22103203]
[1769547571311,1.8444019,127.35,127.3,35.22103203]
[1769547572803,1.8444019,127.39,127.3,35.22103203]
[1769547573006,1.8444019,127.39,127.3,37.06543393]
[1769547573310,1.8444019,127.37,127.3,37.06543393]
[1769547574021,1.8444019,127.37,127.31,7.0779]
[1769547574212,1.8444019,127.37,127.31,35.22103203]
[1769547574919,1.8444019,127.35,127.31,35.22103203]
[1769547575115,1.8444019,127.35,127.29,35.22103203]
[1769547575613,1.8444019,127.35,127.29,42.30023203]
[1769547575815,1.8444019,127.35,127.29,35.22103203]
[1769547576219,1.8444019,127.33,127.29,35.22103203]
[1769547576821,1.8444019,127.36,127.29,35.22103203]
[1769547577209,8.9192019,127.38,127.3,1.8444019]
[1769547577418,8.9192019,127.38,127.31,35.22103203]
[1769547578023,8.9192019,127.38,127.31,42.29903203]
[1769547578522,1.8444019,127.38,127.31,35.22103203]
[1769547579617,34.64482101,127.4,127.31,35.22103203]
[1769547580022,41.71792101,127.4,127.33,7.077]
[1769547580419,34.64482101,127.4,127.31,35.22103203]
[1769547581433,34.64482101,127.38,127.31,35.22103203]
[1769547581836,41.71912101,127.38,127.31,42.29913203]
[1769547582334,34.64482101,127.38,127.31,35.22103203]
[1769547582536,41.71962101,127.38,127.31,35.22103203]
[1769547582733,34.64482101,127.4,127.31,35.22103203]
[1769547583131,7.0737,127.39,127.32,42.29853203]
[1769547584234,7.0737,127.39,127.33,42.29803203]
[1769547584541,34.64482101,127.4,127.33,42.29803203]
[1769547584732,7.0731,127.41,127.33,42.29803203]
[1769547585036,41.71792101,127.41,127.33,42.29803203]
[1769547585240,7.0732,127.4,127.33,42.29803203]
[1769547586435,34.64482101,127.41,127.33,42.29803203]
[1769547587943,41.71752101,127.41,127.33,42.29803203]
[1769547590137,7.0732,127.4,127.33,35.22103203]
[1769547590344,34.64482101,127.4,127.33,35.22103203]
[1769547590537,34.64482101,127.4,127.31,35.22103203]
[1769547590743,41.71922101,127.38,127.31,35.22103203]
[1769547590938,41.71922101,127.38,127.31,42.29913203]
[1769547592340,34.64482101,127.38,127.31,42.29913203]
[1769547593137,34.64482101,127.38,127.32,7.0775]
[1769547593437,110.0131,127.42,127.32,35.22103203]
[1769547593438,34.64482101,127.4,127.32,35.22103203]
[1769547593639,34.64482101,127.43,127.32,35.22103203]
[1769547594741,34.64482101,127.43,127.34,35.95131412]
[1769547595338,41.84988544,127.41,127.32,43.1304217]
[1769547595547,41.84988544,127.41,127.32,35.95131412]
[1769547595746,41.84988544,127.41,127.33,35.95131412]
[1769547595939,37.32208399,127.43,127.34,35.95131412]
[1769547596143,41.84988544,127.44,127.34,35.95131412]
[1769547596345,7.0716,127.43,127.37,35.95131412]
[1769547596545,37.32208399,127.44,127.37,35.95131412]
[1769547597951,7.0715,127.43,127.37,35.95131412]
[1769547598343,7.0715,127.43,127.37,43.02611412]
[1769547598645,37.32208399,127.44,127.37,43.02611412]
[1769547599952,37.32208399,127.44,127.37,35.95131412]
[1769547600145,37.32208399,127.42,127.34,35.95131412]
[1769547600455,7.0726,127.41,127.35,7.0758]
[1769547600649,37.32208399,127.44,127.35,35.95131412]
[1769547600949,37.32208399,127.44,127.36,43.02671412]
[1769547601151,37.32208399,127.44,127.36,35.95131412]
[1769547601350,37.32208399,127.47,127.36,35.95131412]
[1769547601650,37.32208399,127.5,127.4,35.95131412]
[1769547601841,147.24398399,127.53,127.41,35.95131412]
[1769547602041,37.32208399,127.53,127.46,35.95131412]
[1769547602450,4.52780145,127.55,127.46,35.95131412]
[1769547602748,41.84988544,127.55,127.46,35.95131412]
[1769547603049,41.84988544,127.52,127.42,35.95131412]
[1769547603250,44.17658544,127.52,127.42,35.95131412]
[1769547604255,114.48830145,127.48,127.39,35.95131412]
[1769547604552,109.9265,127.52,127.39,35.95131412]
[1769547604553,4.52780145,127.51,127.39,35.95131412]
[1769547604854,7.068,127.5,127.41,43.02371412]
[1769547605055,114.46340145,127.51,127.41,35.95131412]
[1769547605351,37.32208399,127.5,127.41,35.95131412]
[1769547605551,37.32208399,127.47,127.38,35.95131412]
[1769547605859,41.84988544,127.45,127.34,35.95131412]
[1769547606153,37.32208399,127.47,127.36,35.95131412]
[1769547606544,37.32208399,127.46,127.36,35.95131412]
[1769547606741,44.39328399,127.44,127.36,35.95131412]
[1769547607954,37.32208399,127.43,127.33,317.94801412]
[1769547608151,37.32208399,127.43,127.33,43.02801412]
[1769547608349,109.9989,127.44,127.33,43.02801412]
[1769547608350,7.0728,127.41,127.33,43.02801412]
[1769547608850,41.84988544,127.42,127.34,43.02761412]
[1769547609055,4.52780145,127.42,127.34,43.02761412]
[1769547609249,41.84988544,127.45,127.34,35.95131412]
[1769547609457,4.52780145,127.45,127.37,35.95131412]
[1769547610053,7.0711,127.44,127.37,35.95131412]
[1769547610957,4.52780145,127.45,127.37,43.02601412]
[1769547611155,7.0702,127.46,127.37,43.02601412]
[1769547611861,7.0702,127.46,127.39,35.95131412]
[1769547612054,11.59690145,127.48,127.39,35.95131412]
[1769547612265,7.0691,127.48,127.39,35.95131412]
[1769547613060,7.0691,127.48,127.41,35.95131412]
[1769547613857,7.0693,127.47,127.41,35.95131412]
[1769547614748,7.0693,127.47,127.37,110.0497]
[1769547614749,7.0693,127.47,127.38,43.02521412]
[1769547614950,7.0693,127.47,127.38,35.95131412]
[1769547616063,7.0693,127.47,127.39,43.02491412]
[1769547618968,7.07,127.46,127.39,43.02491412]
[1769547619271,37.32208399,127.46,127.39,35.95131412]
[1769547619667,41.84682478,127.46,127.39,35.95131412]
[1769547619866,7.0705,127.45,127.37,7.0745]
[1769547620075,44.39258399,127.45,127.37,43.02581412]
[1769547620370,7.0721,127.42,127.37,35.95131412]
[1769547620667,7.0721,127.42,127.34,35.95131412]
[1769547620668,37.32208399,127.42,127.34,35.95131412]
[1769547621566,1.84438684,127.37,127.34,35.95131412]
[1769547621772,1.84438684,127.38,127.34,35.95131412]
[1769547623464,7.0732,127.4,127.34,35.95131412]
[1769547623665,41.84977094,127.42,127.34,35.95131412]
[1769547624478,7.0732,127.4,127.34,35.95131412]
[1769547625468,7.0737,127.39,127.34,35.95131412]
[1769547625670,36.87678366,127.38,127.28,34.28346394]
[1769547626273,7.0756,127.36,127.29,41.36256394]
[1769547626472,36.87678366,127.38,127.29,41.36256394]
[1769547627171,11.60308695,127.36,127.29,34.28346394]
[1769547627471,41.40447061,127.36,127.29,34.28346394]
[1769547627672,43.95278366,127.35,127.27,34.28346394]
[1769547628170,36.87678366,127.35,127.27,41.36376394]
[1769547628367,11.60488695,127.33,127.27,34.28346394]
[1769547628772,41.40447061,127.33,127.25,7.0813]
[1769547629162,7.0777,127.32,127.24,34.28346394]
[1769547629386,43.95448366,127.32,127.24,34.28346394]
[1769547630074,43.95448366,127.32,127.24,41.36536394]
[1769547631786,36.87678366,127.32,127.25,41.36486394]
[1769547632190,36.87678366,127.35,127.26,34.28346394]
[1769547632376,36.87678366,127.35,127.28,34.28346394]
[1769547632574,146.92418366,127.38,127.28,34.28346394]
[1769547632788,36.87678366,127.38,127.28,34.28346394]
[1769547632974,7.0751,127.37,127.28,41.36316394]
[1769547633689,7.0756,127.36,127.28,41.36316394]
[1769547634482,7.0761,127.35,127.28,34.28346394]
[1769547634989,41.40447061,127.36,127.25,34.28346394]
[1769547635385,7.0766,127.34,127.26,41.36426394]
[1769547635684,36.87678366,127.36,127.26,34.28346394]
[1769547636880,7.0761,127.35,127.27,7.0803]
[1769547637077,7.0761,127.35,127.28,34.28346394]
[1769547637689,7.0766,127.34,127.28,34.28346394]
[1769547637994,41.40447061,127.34,127.25,34.28346394]
[1769547638788,7.0777,127.32,127.25,34.28346394]
[1769547639294,48.48147061,127.34,127.25,34.28346394]
[1769547639686,36.87678366,127.33,127.25,34.28346394]
[1769547640388,36.87678366,127.31,127.22,41.36626394]
[1769547640692,36.87678366,127.3,127.22,34.28346394]
[1769547641087,7.0799,127.28,127.22,34.28346394]
[1769547641483,36.87678366,127.29,127.19,34.28346394]
[1769547641790,41.40447061,127.28,127.19,34.28346394]
[1769547641991,41.40447061,127.28,127.2,41.36766394]
[1769547642188,110.1077,127.31,127.2,41.36766394]
[1769547642189,41.40447061,127.31,127.2,34.28346394]
[1769547642388,344.72447061,127.31,127.2,34.28346394]
[1769547642791,36.87678366,127.3,127.2,34.28346394]
[1769547643692,7.0801,127.28,127.2,34.28346394]
[1769547644693,48.48457061,127.28,127.2,41.36766394]
[1769547645591,7.081,127.26,127.18,7.0849]
[1769547645791,7.081,127.26,127.17,34.28346394]
[1769547646382,7.081,127.26,127.17,41.36896394]
[1769547646890,7.081,127.26,127.17,34.28346394]
[1769547647594,36.87678366,127.26,127.18,34.28346394]
[1769547648888,7.0821,127.24,127.18,34.28346394]
[1769547651591,7.0821,127.24,127.11,14.1776]
[1769547651592,7.0833,127.22,127.15,34.28346394]
[1769547652890,7.0833,127.22,127.15,41.37046394]
[1769547653286,7.0833,127.22,127.15,34.28346394]
[1769547654900,7.0833,127.22,127.15,41.37016394]
[1769547657203,36.87678366,127.24,127.11,283.6376]
[1769547657204,7.0825,127.24,127.16,36.76330136]
[1769547657698,1.8481766,127.25,127.18,43.84850136]
[1769547657899,8.9296766,127.25,127.18,43.84850136]
[1769547658202,36.67034009,127.29,127.2,36.76330136]
[1769547658405,38.51851669,127.29,127.22,36.76330136]
[1769547659200,45.59811669,127.29,127.22,36.76330136]
[1769547659401,1.8481766,127.27,127.22,36.76330136]
[1769547659597,43.74994009,127.29,127.22,36.76330136]
[1769547660198,7.0798,127.28,127.22,36.76330136]
[1769547660501,7.0798,127.28,127.2,36.76330136]
[1769547660502,43.75014009,127.28,127.2,36.76330136]
[1769547660895,36.67034009,127.28,127.21,43.84700136]
[1769547661299,36.67034009,127.31,127.21,43.84700136]
[1769547663004,43.74964009,127.29,127.21,43.84700136]
[1769547663395,36.67034009,127.29,127.21,43.84700136]
[1769547665000,7.0799,127.28,127.21,43.84700136]
[1769547665196,36.67034009,127.29,127.21,36.76330136]
[1769547666911,7.0804,127.27,127.21,36.76330136]
[1769547667107,36.67034009,127.29,127.21,36.76330136]
[1769547667408,36.67034009,127.28,127.18,36.76330136]
[1769547667608,7.0811,127.26,127.19,43.84800136]